lending/lending_fUSD_20250913
["ID","MTS","AMOUNT","RATE_DAILY","PERIOD"]
[385328183,1757778657653,-517.35052424,0.00027397,2]
[385328185,1757778657663,-400.0,0.00027397,2]
[385328187,1757778657672,-400.0,0.00027397,2]
[385328189,1757778657682,-400.0,0.00027397,2]
[385328191,1757778657692,-400.0,0.00027397,2]
[385328193,1757778657706,-1034.74,0.00027397,2]
[385328195,1757778657716,-404.5094751,0.00027397,2]
[385328197,1757778657726,-400.0,0.00027397,2]
[385328199,1757778657736,-400.0,0.00027397,2]
[385328201,1757778657746,-288.40000065,0.00027397,2]
[385328330,1757778659144,-579.34372001,0.00022988,2]
[385328332,1757778659154,-184.45,0.00027277,2]
[385328334,1757778659163,-694.42706809,0.00027367,2]
[385328336,1757778659174,-1627.91789069,0.00027367,2]
[385328340,1757778659193,-483.44504122,0.00027367,2]
[385328342,1757778659204,-2529.93314078,0.00027377,2]
[385328344,1757778659215,-275.85685922,0.00027377,2]
[385328346,1757778659224,-24.14314078,0.00027397,2]
[385328349,1757778659239,-354.92685857,0.00027397,2]
[385328351,1757778659249,-306.78294943,0.00027397,2]
[385328385,1757778659565,-1310.93705057,0.00027397,2]
[385328387,1757778659574,-625.08,0.00027397,2]
[385328389,1757778659583,-41.50481691,0.00027397,2]
[385328405,1757778659741,-358.49518309,0.00027397,2]
[385328407,1757778659751,-400.0,0.00027397,2]
[385328409,1757778659760,-400.0,0.00027397,2]
[385328411,1757778659770,-83.1487741,0.00027397,2]
[385328426,1757778659927,-316.8512259,0.00027397,2]
[385328428,1757778659936,-465.22215819,0.00027397,2]
[385328433,1757778659966,-420.22784181,0.00027397,2]
[385328435,1757778659975,-82.79120566,0.00027397,2]
[385328437,1757778659991,-276.12866054,0.00027397,2]
[385328452,1757778660123,-41.0801338,0.00027397,2]
[385328454,1757778660132,-349.46123302,0.00027397,2]
[385329757,1757778689028,405.459,0.00028315,19]
[385329758,1757778733522,164.0,0.00031,120]
[385329759,1757778901118,370.70100081,0.00029299,15]
[385329760,1757778905477,370.70100081,0.00029699,15]
[385329761,1757778983894,157.85,0.00012579,2]
[385329762,1757778984103,157.85,0.00013319,2]
[385329763,1757778984332,157.85,0.00014059,2]
[385329764,1757778984552,157.85,0.00014798,2]
[385329765,1757778984798,157.85,0.00015538,2]
[385329766,1757778985222,157.85,0.00016278,2]
[385329767,1757778985451,157.85,0.00017018,2]
[385329768,1757778985661,157.85,0.00017758,2]
[385329769,1757778985869,157.85,0.00018498,2]
[385329770,1757778986271,157.85,0.00019238,2]
[385329771,1757778986491,157.85,0.00019978,2]
[385329772,1757779078287,-500.0,0.00027397,14]
[385329773,1757779078381,-500.0,0.00027671,14]
[385329774,1757779078466,-500.0,0.00027945,14]
[385329775,1757779102272,177.96,0.00030691,120]
[385329776,1757779239165,296.56080065,0.00029294,15]
[385329777,1757779243949,296.56080065,0.00029696,15]
[385329778,1757779265458,287.73,0.00027425,30]
[385329779,1757779288432,324.367,0.00028034,18]
[385329782,1757779572387,237.24864052,0.00029256,15]
[385329783,1757779576832,237.24864052,0.00029667,15]
[385329784,1757779669693,382.85290401,0.00032,30]
[385329830,1757779833002,-159.587,0.00020239,2]
[385329832,1757779833012,-250.0,0.00020479,2]
[385329834,1757779833022,-157.85,0.00020718,2]
[385329836,1757779833031,-250.0,0.00021194,2]
[385329838,1757779833041,-177.55334702,0.00021358,2]
[385329840,1757779833050,-157.85,0.00021458,2]
[385329841,1757779833059,-157.85,0.00022198,2]
[385329844,1757779833069,-1200.0,0.00022223,2]
[385329846,1757779833079,-154.0,0.00022223,2]
[385329847,1757779833088,-500.0,0.00022223,2]
[385329848,1757779833098,-300.0,0.00022223,2]
[385329849,1757779833107,-300.0,0.00022223,2]
[385329850,1757779833116,-300.0,0.00022223,2]
[385329851,1757779833125,-1200.0,0.00022223,2]
[385329852,1757779833136,-600.0,0.00022224,2]
[385329853,1757779833148,-600.0,0.00022224,2]
[385329854,1757779833159,-600.0,0.00022224,2]
[385329855,1757779833169,-600.0,0.00022224,2]
[385329856,1757779833178,-300.0,0.00022263,2]
[385329857,1757779833189,-250.0,0.00022263,2]
[385329858,1757779833198,-1526.5672691,0.00022263,2]
[385329859,1757779833208,-1000.0,0.00022263,3]
[385329860,1757779833217,-2570.86088303,0.00022263,2]
[385329861,1757779833227,-195.0,0.00022263,2]
[385329862,1757779833236,-347.31303228,0.00022263,2]
[385329863,1757779833246,-300.0,0.00022263,2]
[385329864,1757779833256,-177.55334701,0.00022602,2]
[385329865,1757779833265,-157.85,0.00022938,2]
[385329866,1757779833274,-9009.35,0.00023551,2]
[385329867,1757779833283,-2164.8,0.00023632,2]
[385329868,1757779833292,-666.0,0.00023649,3]
[385329869,1757779833302,-540.4,0.00023674,2]
[385329870,1757779833311,-184.37,0.00023675,2]
[385329871,1757779833320,-157.85,0.00023677,2]
[385329872,1757779833330,-5000.0,0.00023682,2]
[385329873,1757779833339,-200.0,0.00023692,2]
[385329874,1757779833348,-1211.0,0.00023756,2]
[385329875,1757779833357,-1433.12,0.00023757,2]
[385329876,1757779833367,-800.0,0.00023776,2]
[385329877,1757779833377,-150.0,0.00023819,7]
[385329878,1757779833386,-177.55334701,0.00023845,2]
[385329879,1757779833396,-151.0,0.0002392,2]
[385329880,1757779833406,-151.0,0.0002392,2]
[385329881,1757779833415,-151.0,0.0002392,2]
[385329882,1757779833424,-600.0,0.0002392,2]
[385329883,1757779833434,-354.27961265,0.0002392,2]
[385329884,1757779833443,-200.0,0.0002392,2]
[385329885,1757779833453,-500.0,0.0002392,2]
[385329886,1757779833463,-500.0,0.0002392,2]
[385329887,1757779833473,-500.0,0.0002392,2]
[385329888,1757779833482,-330.4757967,0.0002392,2]
[385329889,1757779833492,-151.0,0.0002392,2]
[385329890,1757779833501,-151.0,0.0002392,2]
[385329891,1757779833511,-151.0,0.0002392,2]
[385329892,1757779833521,-151.0,0.0002392,2]
[385329893,1757779833530,-151.0,0.0002392,2]
[385329894,1757779833540,-151.0,0.0002392,2]
[385329895,1757779833550,-151.0,0.0002392,2]
[385329896,1757779833560,-151.0,0.0002392,2]
[385329897,1757779833570,-151.0,0.0002392,2]
[385329898,1757779833580,-151.0,0.0002392,2]
[385329899,1757779833590,-162.41442141,0.0002392,2]
[385329900,1757779833599,-1769.06892602,0.00023922,2]
[385329901,1757779833609,-585.4320885,0.00023932,2]
[385329902,1757779833618,-500.0,0.00023932,2]
[385329903,1757779833628,-500.0,0.00023932,2]
[385329904,1757779833638,-500.0,0.00023932,2]
[385329905,1757779833647,-500.0,0.00023932,2]
[385329906,1757779833658,-500.0,0.00023932,2]
[385329907,1757779833669,-500.0,0.00023932,2]
[385329908,1757779833679,-500.0,0.00023932,2]
[385329909,1757779833688,-303.51621124,0.00023932,2]
[385329910,1757779833698,-500.0,0.00023932,2]
[385329911,1757779833707,-500.0,0.00023932,2]
[385329912,1757779833716,-500.0,0.00023932,2]
[385329913,1757779833726,-500.0,0.00023932,2]
[385329914,1757779833735,-500.0,0.00023932,2]
[385329915,1757779833745,-500.0,0.00023932,2]
[385329916,1757779833755,-500.0,0.00023932,2]
[385329917,1757779833764,-500.0,0.00023932,2]
[385329918,1757779833773,-500.0,0.00023932,2]
[385329919,1757779833783,-500.0,0.00023932,2]
[385329920,1757779833792,-500.0,0.00023932,2]
[385329921,1757779833802,-500.0,0.00023932,2]
[385329922,1757779833812,-500.0,0.00023932,2]
[385329923,1757779833821,-500.0,0.00023932,2]
[385329924,1757779833830,-500.0,0.00023932,2]
[385329925,1757779833840,-500.0,0.00023932,2]
[385329926,1757779833849,-500.0,0.00023932,2]
[385329927,1757779833858,-439.98751603,0.00023932,2]
[385329928,1757779833868,-500.0,0.00023932,2]
[385329929,1757779833877,-500.0,0.00023932,2]
[385329930,1757779833887,-500.0,0.00023932,2]
[385329931,1757779833896,-500.0,0.00023932,2]
[385329932,1757779833907,-500.0,0.00023932,2]
[385329933,1757779833917,-500.0,0.00023932,2]
[385329934,1757779833927,-331.76145847,0.00023932,2]
[385329935,1757779833937,-500.0,0.00023932,2]
[385329936,1757779833947,-500.0,0.00023932,2]
[385329937,1757779833956,-500.0,0.00023932,2]
[385329938,1757779833966,-500.0,0.00023932,2]
[385329939,1757779833975,-500.0,0.00023932,2]
[385329940,1757779833985,-593.9987516,0.00023932,2]
[385329941,1757779833995,-500.0,0.00023932,2]
[385329942,1757779834004,-33534.66,0.00023935,2]
[385329943,1757779834014,-503.0,0.00023945,2]
[385329944,1757779834023,-570.89,0.0002395,2]
[385329945,1757779834033,-860.18,0.0002395,2]
[385329946,1757779834042,-496.0,0.00024,2]
[385329947,1757779834051,-998.0,0.00024144,2]
[385329948,1757779834061,-420.0,0.00024144,2]
[385329949,1757779834071,-1113.43675142,0.00024152,2]
[385329950,1757779834081,-1113.43675142,0.00024152,2]
[385329951,1757779834091,-1680.0,0.00024257,2]
[385329952,1757779834101,-157.85,0.00024417,2]
[385329953,1757779834111,-205.09,0.00024446,2]
[385329954,1757779834120,-4024.4,0.0002446,2]
[385329955,1757779834130,-600.0,0.00024468,2]
[385329956,1757779834145,-203.75047665,0.00024468,2]
[385329957,1757779834156,-610.0,0.00024494,2]
[385329958,1757779834166,-177.96,0.00024552,2]
[385329959,1757779834176,-132.59076326,0.00024558,2]
[385329960,1757779834189,-189.35923674,0.00024558,2]
[385329961,1757779834198,-298.27276343,0.00024562,2]
[385329962,1757779834211,-605.13164189,0.00024562,2]
[385329963,1757779834268,-7041.14808607,0.00024562,2]
[385329964,1757779834280,-400.73503673,0.00024562,2]
[385329965,1757779834301,-353.17247188,0.00024562,2]
[385329966,1757779834310,-451.14878087,0.00024606,2]
[385329967,1757779834322,-6201.31121913,0.00024606,2]
[385329968,1757779834331,-167.42,0.00024608,2]
[385329969,1757779834340,-2253.24,0.00024634,2]
[385329970,1757779834350,-1000.0,0.00024658,2]
[385329971,1757779834359,-800.0,0.00024668,2]
[385329972,1757779834369,-5000.0,0.00024885,2]
[385329973,1757779834379,-4393.76020963,0.000249,2]
[385329974,1757779834388,-600.0,0.00025016,2]
[385329975,1757779834398,-471.98,0.00025016,2]
[385329976,1757779834409,-1672.97,0.00025016,2]
[385329977,1757779834419,-150.0,0.00025126,2]
[385329978,1757779834428,-150.00000001,0.00025126,2]
[385329979,1757779834438,-150.0,0.00025126,2]
[385329980,1757779834447,-150.0,0.00025126,2]
[385329981,1757779834456,-150.0,0.00025126,2]
[385329982,1757779834466,-150.0,0.00025126,2]
[385329983,1757779834476,-152.23321639,0.00025126,2]
[385329984,1757779834486,-150.0,0.00025126,2]
[385329985,1757779834495,-150.70569818,0.00025126,2]
[385329986,1757779834504,-150.0,0.00025126,2]
[385329987,1757779834514,-150.0,0.00025126,2]
[385329988,1757779834524,-150.0,0.00025126,2]
[385329989,1757779834534,-150.0,0.00025126,2]
[385329990,1757779834544,-150.0,0.00025126,2]
[385329991,1757779834554,-157.85,0.00025157,2]
[385329992,1757779834563,-161.71,0.00025159,2]
[385329993,1757779834574,-270.0,0.00025175,2]
[385329994,1757779834584,-486.0,0.0002518,2]
[385329995,1757779834594,-1565.91535497,0.000252,2]
[385329996,1757779834604,-150.0,0.00025205,2]
[385329997,1757779834613,-291.05815952,0.0002532,2]
[385329998,1757779834623,-341.36450808,0.00025435,2]
[385329999,1757779834632,-150.0,0.00025491,2]
[385330000,1757779834642,-1830.0,0.000255,2]
[385330001,1757779834653,-391.67085664,0.0002555,2]
[385330002,1757779834663,-800.0,0.0002556,2]
[385330003,1757779834672,-441.9772052,0.00025665,2]
[385330004,1757779834681,-150.0,0.00025684,4]
[385330005,1757779834691,-150.0,0.00025684,4]
[385330006,1757779834700,-492.28355376,0.00025779,2]
[385330007,1757779834710,-542.58990232,0.00025894,2]
[385330008,1757779834720,-173.0,0.00025959,2]
[385330009,1757779834729,-1000.01,0.00026,2]
[385330010,1757779834738,-592.89625087,0.00026009,2]
[385330011,1757779834748,-150.0,0.00026057,4]
[385330012,1757779834757,-150.0,0.00026057,4]
[385330013,1757779834767,-150.0,0.00026057,4]
[385330014,1757779834776,-643.20259943,0.00026124,2]
[385330015,1757779834786,-7040.57912003,0.00026178,2]
[385330016,1757779834795,-587.0,0.0002623,2]
[385330017,1757779834805,-693.50894799,0.00026239,2]
[385330018,1757779834814,-150.0,0.00026243,4]
[385330019,1757779834823,-150.0,0.00026243,4]
[385330020,1757779834832,-1000.0,0.00026278,2]
[385330021,1757779834841,-524.30297204,0.00026278,2]
[385330022,1757779834850,-322.6107,0.00026278,2]
[385330023,1757779834859,-250.0,0.00026278,2]
[385330024,1757779834869,-9552.16786547,0.00026278,2]
[385330025,1757779834879,-500.0,0.00026278,2]
[385330026,1757779834888,-500.0,0.00026278,2]
[385330027,1757779834897,-500.0,0.00026278,2]
[385330028,1757779834910,-500.0,0.00026278,2]
[385330029,1757779834919,-450.0,0.00026278,2]
[385330030,1757779834929,-1000.0,0.00026278,2]
[385330031,1757779834939,-1000.0,0.00026278,2]
[385330032,1757779834948,-1000.0,0.00026278,2]
[385330033,1757779834958,-277.35679052,0.00026278,2]
[385330034,1757779834967,-151.0,0.00026278,2]
[385330035,1757779834977,-1000.0,0.00026278,2]
[385330036,1757779834986,-1000.0,0.00026278,2]
[385330037,1757779834995,-3000.0,0.00026278,2]
[385330038,1757779835005,-721.12765535,0.00026278,2]
[385330039,1757779835015,-250.0,0.00026278,2]
[385330040,1757779835024,-160.0,0.00026278,2]
[385330041,1757779835033,-250.0,0.00026278,2]
[385330042,1757779835042,-500.0,0.00026278,2]
[385330043,1757779835052,-500.0,0.00026278,2]
[385330044,1757779835061,-500.0,0.00026278,2]
[385330045,1757779835070,-500.0,0.00026278,2]
[385330046,1757779835080,-250.0,0.00026278,2]
[385330047,1757779835090,-250.0,0.00026278,2]
[385330048,1757779835099,-250.0,0.00026278,2]
[385330049,1757779835108,-250.0,0.00026278,2]
[385330050,1757779835118,-153.92740165,0.00026278,2]
[385330051,1757779835127,-151.0,0.00026278,2]
[385330052,1757779835140,-250.0,0.00026278,2]
[385330053,1757779835150,-1000.0,0.00026278,2]
[385330054,1757779835160,-500.0,0.00026278,2]
[385330055,1757779835169,-250.0,0.00026278,2]
[385330056,1757779835181,-1000.0,0.00026278,2]
[385330057,1757779835191,-500.0,0.00026278,2]
[385330058,1757779835200,-250.0,0.00026278,2]
[385330059,1757779835211,-1000.0,0.00026278,2]
[385330060,1757779835224,-250.0,0.00026278,2]
[385330061,1757779835234,-247.57591582,0.00026278,2]
[385330062,1757779835255,-252.42408418,0.00026278,2]
[385330063,1757779835265,-250.0,0.00026278,2]
[385330064,1757779835275,-864.50624801,0.00026278,2]
[385330065,1757779835286,-135.49375199,0.00026278,2]
[385330066,1757779835296,-250.0,0.00026278,2]
[385330067,1757779835305,-500.0,0.00026278,2]
[385330068,1757779835314,-1000.0,0.00026278,2]
[385330069,1757779835324,-250.0,0.00026278,2]
[385330070,1757779835332,-500.0,0.00026278,2]
[385330071,1757779835342,-1000.0,0.00026278,2]
[385330072,1757779835351,-500.0,0.00026278,2]
[385330073,1757779835360,-250.0,0.00026278,2]
[385330074,1757779835370,-312.94220139,0.00026278,2]
[385330075,1757779835407,-187.05779861,0.00026278,2]
[385330076,1757779835416,-1000.0,0.00026278,2]
[385330077,1757779835426,-500.0,0.00026278,2]
[385330078,1757779835436,-1000.0,0.00026278,2]
[385330079,1757779835445,-500.0,0.00026278,2]
[385330080,1757779835453,-1000.0,0.00026278,2]
[385330081,1757779835463,-500.0,0.00026278,2]
[385330082,1757779835472,-1000.0,0.00026278,2]
[385330083,1757779835481,-500.0,0.00026278,2]
[385330084,1757779835490,-1000.0,0.00026278,2]
[385330085,1757779835500,-151.0,0.00026278,2]
[385330086,1757779835509,-9905.5980765,0.00026333,2]
[385330087,1757779835519,-743.81529655,0.00026354,2]
[385330088,1757779835528,-476.0,0.0002637,2]
[385330089,1757779835538,-10272.10520533,0.00026388,2]
[385330090,1757779835547,-10652.17309792,0.00026443,2]
[385330091,1757779835556,-800.0,0.00026451,2]
[385330092,1757779835566,-7040.57912,0.00026455,2]
[385330093,1757779835576,-794.12164511,0.00026468,2]
[385330094,1757779835586,-2351.0,0.00026476,2]
[385330095,1757779835595,-11046.30350255,0.00026498,2]
[385330096,1757779835605,-2751.0,0.0002652,2]
[385330097,1757779835615,-150.0,0.00026522,4]
[385330098,1757779835625,-11455.01673214,0.00026553,2]
[385330099,1757779835634,-844.42799367,0.00026583,2]
[385330100,1757779835644,-11878.85235123,0.00026608,2]
[385330101,1757779835656,-12318.36988823,0.00026663,2]
[385330102,1757779835666,-894.73434223,0.00026698,2]
[385330103,1757779835676,-600.0,0.000267,9]
[385330104,1757779835685,-1300.0,0.000268,9]
[385330105,1757779835695,-150.0,0.00026801,4]
[385330106,1757779835705,-150.0,0.00026801,4]
[385330107,1757779835714,-945.04069079,0.00026813,2]
[385330108,1757779835724,-151.0,0.00026813,7]
[385330109,1757779835733,-151.0,0.00026826,2]
[385330110,1757779835743,-151.0,0.00026826,2]
[385330111,1757779835752,-2000.0,0.000269,9]
[385330112,1757779835762,-249.409656,0.000269,7]
[385330113,1757779835772,-151.0,0.000269,7]
[385330114,1757779835781,-151.0,0.000269,7]
[385330115,1757779835791,-995.34703935,0.00026928,2]
[385330116,1757779835801,-150.0,0.00026987,4]
[385330117,1757779835811,-150.0,0.00026987,4]
[385330118,1757779835820,-150.0,0.00026987,4]
[385330119,1757779835829,-3076.0,0.00027,2]
[385330120,1757779835839,-1045.65338791,0.00027042,2]
[385330121,1757779835848,-158.93,0.0002707,2]
[385330122,1757779835858,-5451.1533,0.00027087,2]
[385330123,1757779835868,-1250.84,0.000271,2]
[385330124,1757779835878,-151.0,0.00027147,7]
[385330125,1757779835888,-182.379336,0.00027147,7]
[385330126,1757779835897,-1095.95973646,0.00027157,2]
[385330127,1757779835910,-15472.03036,0.00027177,2]
[385330128,1757779835919,-33209.5602,0.00027187,2]
[385330129,1757779835930,-4344.23086197,0.00027187,2]
[385330130,1757779835939,-882.243886,0.00027188,2]
[385330131,1757779835949,-2969.0117,0.00027246,2]
[385330132,1757779835959,-1146.26608502,0.00027272,2]
[385330133,1757779835968,-15472.03036,0.00027284,2]
[385330134,1757779835978,-161.63520997,0.00027287,2]
[385330135,1757779835987,-14843.7978992,0.00027294,2]
[385330136,1757779835997,-2368.9848898,0.00027294,2]
[385330137,1757779836007,-3217.8776467,0.00027294,2]
[385330138,1757779836016,-151.0,0.00027294,7]
[385330139,1757779836264,-1000.0,0.00027297,2]
[385330140,1757779836274,-517.90200001,0.00027297,2]
[385330141,1757779836284,-498.71572668,0.00027297,2]
[385330142,1757779836293,-4337.31998846,0.000273,2]
[385330143,1757779836303,-6497.1718269,0.00027301,2]
[385330144,1757779836312,-165.9685326,0.00027301,2]
[385330145,1757779836321,-444.6422221,0.00027301,2]
[385330146,1757779836331,-267.4928284,0.00027301,2]
[385330147,1757779836340,-150.0,0.00027306,2]
[385330148,1757779836350,-500.0,0.00027306,2]
[385330149,1757779836359,-150.0,0.00027306,2]
[385330150,1757779836368,-150.0,0.00027306,2]
[385330151,1757779836378,-150.0,0.00027306,2]
[385330152,1757779836388,-500.0,0.00027306,2]
[385330153,1757779836397,-500.0,0.00027306,2]
[385330154,1757779836408,-150.0,0.00027306,2]
[385330155,1757779836418,-150.0,0.00027306,2]
[385330156,1757779836427,-168.89,0.00027306,2]
[385330157,1757779836436,-4344.23086196,0.00027321,2]
[385330158,1757779836445,-800.0,0.00027343,2]
[385330159,1757779836455,-150.0,0.00027359,4]
[385330160,1757779836464,-150.0,0.00027359,4]
[385330161,1757779836474,-15472.03036,0.00027363,2]
[385330162,1757779836483,-507.51153044,0.00027373,2]
[385330163,1757779836493,-510.18146955,0.00027373,2]
[385330164,1757779836503,-500.0,0.00027373,2]
[385330165,1757779836512,-500.0,0.00027373,2]
[385330166,1757779836522,-500.0,0.00027373,2]
[385330167,1757779836532,-500.0,0.00027373,2]
[385330168,1757779836542,-500.0,0.00027373,2]
[385330169,1757779836551,-159.752266,0.00027373,2]
[385330170,1757779836561,-530.45601009,0.00027373,2]
[385330171,1757779836570,-509.09505568,0.00027373,2]
[385330172,1757779836580,-626.29827616,0.00027373,2]
[385330173,1757779836590,-508.52577176,0.00027373,2]
[385330174,1757779836600,-500.0,0.00027373,2]
[385330175,1757779836610,-500.0,0.00027373,2]
[385330176,1757779836620,-500.0,0.00027373,2]
[385330177,1757779836630,-151.0,0.00027374,2]
[385330178,1757779836640,-151.0,0.00027374,2]
[385330179,1757779836651,-59876.66467755,0.00027377,2]
[385330180,1757779836668,-3657.93745374,0.00027377,2]
[385330225,1757779838676,-509.69502246,0.00026177,2]
[385330227,1757779838685,-335.58282829,0.00026177,2]
[385330229,1757779838696,-295.46488839,0.00026177,2]
[385330232,1757779838706,-7040.57912,0.00026731,2]
[385330233,1757779838716,-151.0,0.00026813,7]
[385330235,1757779838726,-1904.39556656,0.00027377,2]
[385330240,1757779838758,-680.82022608,0.00027377,2]
[385330241,1757779838769,-665.44409936,0.00027377,2]
[385330242,1757779838781,-790.74062147,0.00027377,2]
[385330285,1757779839985,-71672.27059524,0.00027377,2]
[385330287,1757779839995,-151.0,0.00027377,7]
[385330289,1757779840005,-15472.03036,0.00027387,2]
[385330291,1757779840015,-38065.00253931,0.00027387,2]
[385330297,1757779840058,-3620.69978908,0.00027387,2]
[385330309,1757779840190,-569.6121411,0.00027387,2]
[385330310,1757779840202,-2426.0,0.00027387,2]
[385330320,1757779840564,-2997.94679155,0.00027387,2]
[385330322,1757779840577,-2759.08781808,0.00027387,2]
[385330324,1757779840589,-1210.8168,0.00027387,2]
[385330329,1757779840625,-22559.0,0.00027387,2]
[385330460,1757779844267,-7040.57912,0.00027008,2]
[385330462,1757779844278,-80512.13772088,0.00027387,2]
[385330464,1757779844287,-602.52947784,0.00027387,2]
[385330466,1757779844297,-1196.57243358,0.00027387,2]
[385330468,1757779844307,-151.0,0.00027387,7]
[385330470,1757779844316,-10450.93397371,0.00027397,2]
[385330472,1757779844325,-182.38848723,0.00027397,2]
[385330474,1757779844335,-151.0,0.00027397,2]
[385330476,1757779844344,-403.36754174,0.00027397,2]
[385330478,1757779844353,-423.61883907,0.00027397,2]
[385330480,1757779844363,-406.08863151,0.00027397,2]
[385330482,1757779844373,-400.0,0.00027397,2]
[385330484,1757779844382,-356.85946511,0.00027397,2]
[385330486,1757779844391,-400.0,0.00027397,2]
[385330488,1757779844400,-400.0,0.00027397,2]
[385330490,1757779844413,-400.0,0.00027397,2]
[385330492,1757779844422,-362.08315488,0.00027397,2]
[385330494,1757779844431,-400.0,0.00027397,2]
[385330496,1757779844440,-404.59106714,0.00027397,2]
[385330498,1757779844449,-400.0,0.00027397,2]
[385330500,1757779844459,-400.0,0.00027397,2]
[385330502,1757779844468,-400.0,0.00027397,2]
[385330504,1757779844477,-204.53624979,0.00027397,2]
[385330506,1757779844486,-400.0,0.00027397,2]
[385330508,1757779844495,-400.0,0.00027397,2]
[385330510,1757779844504,-410.05834898,0.00027397,2]
[385330512,1757779844514,-400.0,0.00027397,2]
[385330514,1757779844523,-400.0,0.00027397,2]
[385330516,1757779844532,-400.0,0.00027397,2]
[385330518,1757779844542,-400.0,0.00027397,2]
[385330520,1757779844553,-400.0,0.00027397,2]
[385330522,1757779844562,-400.0,0.00027397,2]
[385330524,1757779844571,-400.0,0.00027397,2]
[385330526,1757779844581,-400.0,0.00027397,2]
[385330528,1757779844590,-400.0,0.00027397,2]
[385330530,1757779844600,-405.4970592,0.00027397,2]
[385330532,1757779844610,-400.0,0.00027397,2]
[385330561,1757779844866,-400.0,0.00027397,2]
[385330563,1757779844889,-400.0,0.00027397,2]
[385330565,1757779844899,-400.0,0.00027397,2]
[385330567,1757779844909,-400.0,0.00027397,2]
[385330569,1757779844918,-521.97,0.00027397,2]
[385330571,1757779844927,-400.0,0.00027397,2]
[385330573,1757779844937,-400.0,0.00027397,2]
[385330575,1757779844946,-516.41,0.00027397,2]
[385330577,1757779844955,-400.0,0.00027397,2]
[385330579,1757779844964,-400.0,0.00027397,2]
[385330581,1757779844973,-402.77765185,0.00027397,2]
[385330583,1757779844982,-400.0,0.00027397,2]
[385330584,1757779844991,-400.0,0.00027397,2]
[385330585,1757779845001,-400.0,0.00027397,2]
[385330586,1757779845010,-643.61,0.00027397,2]
[385330587,1757779845019,-400.0,0.00027397,2]
[385330588,1757779845028,-400.0,0.00027397,2]
[385330589,1757779845036,-400.0,0.00027397,2]
[385330590,1757779845046,-400.0,0.00027397,2]
[385330591,1757779845056,-191.79528567,0.00027397,2]
[385330592,1757779845064,-400.0,0.00027397,2]
[385330593,1757779845073,-400.0,0.00027397,2]
[385330594,1757779845082,-400.0,0.00027397,2]
[385330595,1757779845091,-400.0,0.00027397,2]
[385330596,1757779845100,-499.66,0.00027397,2]
[385330597,1757779845109,-400.0,0.00027397,2]
[385330598,1757779845118,-400.0,0.00027397,2]
[385330599,1757779845126,-400.0,0.00027397,2]
[385330600,1757779845136,-400.0,0.00027397,2]
[385330602,1757779845147,-404.89226125,0.00027397,2]
[385330604,1757779845156,-400.0,0.00027397,2]
[385330606,1757779845166,-400.0,0.00027397,2]
[385330608,1757779845175,-400.0,0.00027397,2]
[385330610,1757779845184,-282.56457876,0.00027397,2]
[385330612,1757779845193,-455.53,0.00027397,2]
[385330614,1757779845202,-400.0,0.00027397,2]
[385330615,1757779845214,-400.0,0.00027397,2]
[385330617,1757779845223,-400.0,0.00027397,2]
[385330619,1757779845232,-802.77,0.00027397,2]
[385330621,1757779845242,-400.0,0.00027397,2]